Workbook

Sheet Sheet1
A1: ALLURA, LLP
A2: Profit and Loss
A3: March 1-May 31, 2026
B5: Mar 2026 | C5: Apr 2026 | D5: May 2026 | E5: Total
A6: Income
A7: 4010 Apartment Rent | B7: 59216.38 | C7: 54295.34 | D7: 52867.5 | E7: =B7+C7+D7 -> 166379.22
A8: 4011 Aplication Fee | B8: 1975 | E8: =B8+C8+D8 -> 1975
A9: Total for 4010 Apartment Rent | B9: =B7+B8 -> 61191.38 | C9: =C7+C8 -> 54295.34 | D9: =D7+D8 -> 52867.5 | E9: =B9+C9+D9 -> 168354.22
A10: 4030 Utilities Reimbursement | B10: 4738.99 | C10: 5097.37 | D10: 4532.05 | E10: =B10+C10+D10 -> 14368.41
A11: Total for Income | B11: =B6+B9+B10 -> 65930.37 | C11: =C6+C9+C10 -> 59392.71 | D11: =D6+D9+D10 -> 57399.55 | E11: =B11+C11+D11 -> 182722.63
A12: Gross Profit | B12: =B11-0 -> 65930.37 | C12: =C11-0 -> 59392.71 | D12: =D11-0 -> 57399.55 | E12: =B12+C12+D12 -> 182722.63
A13: Expenses
A14: 6000 Wages | B14: 1782 | C14: 5368 | D14: 1760 | E14: =B14+C14+D14 -> 8910
A15: 6030 Trash | B15: 950 | C15: 950 | D15: 950 | E15: =B15+C15+D15 -> 2850
A16: 6145 Contract Labor - secretarial
A17: 6147 Contract labor Accounting | C17: 156.25 | D17: 400 | E17: =B17+C17+D17 -> 556.25
A18: 6150 Mark - contract labor | C18: 1000 | E18: =B18+C18+D18 -> 1000
A19: 6155 John Boettcher - contract Labor | B19: 3000 | D19: 1785 | E19: =B19+C19+D19 -> 4785
A20: Total for 6145 Contract Labor - secretarial | B20: =B16+B17+B18+B19 -> 3000 | C20: =C16+C17+C18+C19 -> 1156.25 | D20: =D16+D17+D18+D19 -> 2185 | E20: =B20+C20+D20 -> 6341.25
A21: 6146 Contract labor Building Main | B21: 3532.13 | C21: 2124.31 | D21: 3041.2 | E21: =B21+C21+D21 -> 8697.64
A22: 6160 Advertising, Marketing, Promo | B22: 673.8 | C22: 336.9 | D22: 354 | E22: =B22+C22+D22 -> 1364.7
A23: 6180 Professional Fees | B23: 1219 | E23: =B23+C23+D23 -> 1219
A24: 6190 Interior & Building Maintenance | B24: 5460.31 | C24: 204.59 | D24: 499.94 | E24: =B24+C24+D24 -> 6164.84
A25: 6200 Electricity | B25: 4155.32 | C25: 4138.3 | D25: 4268.81 | E25: =B25+C25+D25 -> 12562.43
A26: 6220 Gas | B26: 3854 | C26: 2068 | D26: 1877 | E26: =B26+C26+D26 -> 7799
A27: 6240 Telephone | B27: 715.97 | C27: 715.98 | E27: =B27+C27+D27 -> 1431.95
A28: 6270 Real Estate Taxes | C28: 24449.17 | E28: =B28+C28+D28 -> 24449.17
A29: 6290 Licenses & Permits | D29: 650 | E29: =B29+C29+D29 -> 650
A30: 6300 Insurance | B30: 5759.06 | C30: 6060.56 | D30: 6369.46 | E30: =B30+C30+D30 -> 18189.08
A31: 6330 Payroll Tax Expense | B31: 137.07 | C31: 410.65 | D31: 134.64 | E31: =B31+C31+D31 -> 682.36
A32: 6350 Interest Expense
A33: 6390 Bank Charges | C33: 15 | D33: 20 | E33: =B33+C33+D33 -> 35
A34: 6415 Repairs and Maintenance | B34: 1238.62 | C34: 4040.74 | D34: 5145.14 | E34: =B34+C34+D34 -> 10424.5
A35: 6560 Payroll Expenses | B35: 0 | C35: 0 | D35: 0 | E35: =B35+C35+D35 -> 0
A36: 6900 Suspense Expense | B36: 2000 | E36: =B36+C36+D36 -> 2000
A37: Total for Expenses | B37: =B13+B14+B15+B20+B21+B22+B23+B24+B25+B26+B27+B28+B29+B30+B31+B32+B33+B34+B35+B36 -> 34477.28 | C37: =C13+C14+C15+C20+C21+C22+C23+C24+C25+C26+C27+C28+C29+C30+C31+C32+C33+C34+C35+C36 -> 52038.45 | D37: =D13+D14+D15+D20+D21+D22+D23+D24+D25+D26+D27+D28+D29+D30+D31+D32+D33+D34+D35+D36 -> 27255.19 | E37: =B37+C37+D37 -> 113770.92
A38: Net Operating Income | B38: =B12-B37 -> 31453.09 | C38: =C12-C37 -> 7354.26 | D38: =D12-D37 -> 30144.36 | E38: =B38+C38+D38 -> 68951.71
A39: Other Income
A40: 7100 Interest Income | B40: 0.02 | C40: 0.03 | D40: 0.02 | E40: =B40+C40+D40 -> 0.07
A41: Total for Other Income | B41: =B39+B40 -> 0.02 | C41: =C39+C40 -> 0.03 | D41: =D39+D40 -> 0.02 | E41: =B41+C41+D41 -> 0.07
A42: Net Other Income | B42: =B41-0 -> 0.02 | C42: =C41-0 -> 0.03 | D42: =D41-0 -> 0.02 | E42: =B42+C42+D42 -> 0.07
A43: Net Income | B43: =B38+B42 -> 31453.11 | C43: =C38+C42 -> 7354.29 | D43: =D38+D42 -> 30144.38 | E43: =B43+C43+D43 -> 68951.78
A47: Accrual Basis Tuesday, June 09, 2026 02:12 PM GMTZ
